Cogmind - Beta 15 @@@ ROGUE MODE // 2025.06.02 @ 22:22:16 Player: raiguard Result: Destroyed by G-34 Mercenary with Small Laser Performance ------------- Evolutions (1) 500 Regions Visited (2) 400 Robots Destroyed (28) 140 Value Destroyed (948) 948 Prototype IDs (0) 0 Alien Tech Used (0) 0 Bonus (0) 0 TOTAL SCORE: 1988 Bonus ------- None Cogmind --------- Core Integrity 0/400 Matter 18/300 Energy 100/100 System Corruption 1% Temperature Cool (12) Movement Core (50) Location -9/Materials Parts ------- > --- POWER (1) -------- (None) > --- PROPULSION (4) --- (None) > --- UTILITY (2) ------ (None) > --- WEAPON (2) ------- (None) > --- INVENTORY (5) ---- Heavy Armor Plating Rocket Launcher Peak State ------------ > --- POWER ------------ Ion Engine > --- PROPULSION ------- Aluminum Leg Aluminum Leg Aluminum Leg Aluminum Leg > --- UTILITY ---------- Large Storage Unit Structural Scanner > --- WEAPON ----------- Autogun Autogun > --- INVENTORY -------- Aluminum Leg Aluminum Leg Aluminum Leg Aluminum Leg Medium Storage Unit Targeting Computer Heavy Armor Plating Light Assault Rifle Light Cannon Grenade Launcher Rocket Launcher Rocket Launcher Heavy Hammer [Rating: 13] Favorites ----------- Power Ion Engine Engine Ion Engine Propulsion Aluminum Leg Leg Aluminum Leg Utility Structural Scanner Device Structural Scanner Storage Small Storage Unit Weapon Light Assault Rifle Ballistic Gun Light Assault Rifle Ballistic Cannon Light Cannon Launcher Grenade Launcher Impact Weapon Heavy Hammer Build | -11 -10 -9 ------- Run | Yrd Mat Mat Slots Evolved 2 | . . 2 Power . | . . . Propulsion 2 | . . 2 Utility . | . . . Weapon . | . . . Parts Attached 38 | 6 18 14 Power 4 | 1 1 2 Engine 4 | 1 1 2 Core . | . . . Reactor . | . . . Propulsion 17 | 2 9 6 Treads . | . . . Leg 17 | 2 9 6 Wheel . | . . . Hover . | . . . Flight . | . . . Utility 4 | 1 2 1 Device 1 | . 1 . Storage 3 | 1 1 1 Processor . | . . . Hackware . | . . . Protection . | . . . Artifact . | . . . Weapon 13 | 2 6 5 Energy Gun . | . . . Energy Cannon . | . . . Ballistic Gun 8 | 2 4 2 Ballistic Cannon 1 | . . 1 Launcher 3 | . 2 1 Special Weapon . | . . . Impact Weapon 1 | . . 1 Slashing Weapon . | . . . Piercing Weapon . | . . . Special Melee Weapon . | . . . Unidentified Prototypes . | . . . Parts Lost 15 | . 3 12 Power 3 | . 1 2 Propulsion 7 | . . 7 Utility . | . . . Weapon 5 | . 2 3 Highest Loss Streak 9 | . 1 9 To Critical Strikes . | . . . Average Backups 8 | 4 8 10 Power . | . 1 . Propulsion 3 | 2 4 2 Utility 1 | . 1 2 Weapon 2 | . 2 4 Tool/Special . | . . . Unused Backups 11 | . 7 4 Power . | . . . Propulsion 4 | . 4 . Utility 2 | . . 2 Weapon 5 | . 3 2 Tool/Special . | . . . Average Slot Usage (%) 92 | . 92 92 Engine 12 | . 13 10 Leg 30 | . 27 39 Device 7 | . 7 10 Storage 13 | . 14 10 Ballistic Gun 20 | . 22 14 Launcher 5 | . 5 4 Peak Build Rating 13 | 6 8 13 Average Rating 7 | 5 6 10 On Entrance 4 | . 6 8 Naked Turns 1 | . . 1 Heaviest Build 33 | 12 20 33 Greatest Support 40 | 20 20 40 Greatest Overweight (x) 9 | . . 9 Average Overweight (x) . | . . . Largest Inventory Capacity 15 | 8 10 15 Average Capacity 9 | 7 8 14 Most Carried 15 | 6 10 15 Average Carried 8 | 4 8 11 Final Capacity 10 | 8 10 5 Final Carried 10 | 6 10 3 Class Distribution -------------------- 62% | Mutant 37% | Scavenger-Mutant Dominant Class ---------------- Mutant | -10/Materials Scavenger-Mutant | -9/Materials Resources | -11 -10 -9 ----------- Run | Yrd Mat Mat Matter Collected 734 | 196 437 101 Remotely . | . . . Salvage Created 768 | . 544 224 Parts 51 | . 37 14 Haulers Intercepted . | . . . Recyclers Shooed . | . . . Parts Field Recycled . | . . . Retrieved Matter . | . . . Parts Self-Destructed . | . . . Prevented . | . . . Kills | -11 -10 -9 ------- Run | Yrd Mat Mat Combat Hostiles Destroyed 27 | . 16 11 Guns 17 | . 14 3 Cannons 1 | . . 1 AOE 9 | . 2 7 Classes Destroyed 4 | . 3 1 Watcher 1 | . 1 . Swarmer 5 | . 3 2 Grunt 20 | . 13 7 Sentry 2 | . . 2 Best Kill Streak 5 | . 3 5 Combat Bots Only 5 | . 3 5 Max Kills in Single Turn 2 | . 1 2 Gunslinging . | . . . Exploded 2 | . 1 2 Melee . | . . . Uniques/NPCs Destroyed . | . . . Combat | -11 -10 -9 -------- Run | Yrd Mat Mat Hostile Shots Fired 258 | . 90 168 Missed 80 | . 27 53 Hits 178 | . 63 115 Melee 4 | . . 4 Projectile 174 | . 63 111 Critical Strikes 5 | . 2 3 Damage Taken 2307 | . 762 1545 Core 572 | . 162 410 Absorbed by Shields . | . . . Regen/Repaired (Parts) 67 | . 67 . Core Remaining (%) 67 | 100 35 . Volleys Fired 93 | . 67 26 Largest 2 | . 2 2 Hottest 63 | . 50 63 Shots Fired 172 | . 129 43 Gun 151 | . 125 26 Cannon 7 | . . 7 Launcher 14 | . 4 10 Special . | . . . Kinetic 158 | . 125 33 Thermal . | . . . Explosive 14 | . 4 10 Electromagnetic . | . . . Robot Hit Streak 11 | . 11 5 Robot Miss Streak 3 | . 3 2 Penetration Max . | . . . Secondary Targets . | . . . Shots Hit Robots 110 | . 89 21 Core Hits 54 | . 36 18 Critical Kills . | . . . Critical Parts Destroyed . | . . . Critical Strikes . | . . . Melee Attacks 2 | . . 2 Impact 2 | . . 2 Slashing . | . . . Piercing . | . . . Sneak Attacks . | . . . Combat Hostiles . | . . . Follow-up Attacks . | . . . Damage Inflicted 1986 | . 991 995 Guns 1049 | . 881 168 Cannons 87 | . . 87 Explosions 813 | . 105 708 Melee 26 | . . 26 Ramming 11 | . 5 6 Kinetic 1136 | . 881 255 Thermal 278 | . . 278 Explosive 535 | . 105 430 Electromagnetic . | . . . Impact 26 | . . 26 Slashing . | . . . Piercing . | . . . Highest Corruption 1 | . . 1 Average Corruption 1 | . . 1 Corruption Purged . | . . . Corruption Blocked . | . . . Overload Shots . | . . . Overflow Damage 47 | . . 47 Projectiles . | . . . Explosions 47 | . . 47 Melee . | . . . Knockbacks 3 | . . 3 Impact 1 | . . 1 Kinetic 2 | . . 2 Secondary . | . . . Self-Inflicted Damage 160 | . 35 125 Shots 5 | . 2 3 Rammed 1 | . . 1 Targets Rammed 4 | . 3 1 Kicked 3 | . 3 . Crushed . | . . . Highest Temperature 43 | . 36 43 Average Temperature 12 | . 9 17 Received Heat Transfer 960 | . 396 564 Siege Activations . | . . . Martial Activations . | . . . Shielding Activations . | . . . Robots Disrupted . | . . . Combat Hostiles . | . . . Robots Corrupted . | . . . Combat Hostiles . | . . . Parts Fried . | . . . Impact Corruptions . | . . . Robots Melted . | . . . Combat Hostiles . | . . . Parts Melted . | . . . Heat Transferred 200 | . . 200 Parts Sabotaged . | . . . Parts Stolen . | . . . Parts Stripped . | . . . Power Chain Reactions . | . . . Alert | -11 -10 -9 ------- Run | Yrd Mat Mat Maximum Alert Level 1 | . 1 1 Low Security (%) 70 | 100 83 27 Level 1 29 | . 16 72 Level 2 . | . . . Level 3 . | . . . Level 4 . | . . . Level 5 . | . . . High Security . | . . . Max Security . | . . . Peak Influence 354 | . 264 354 Initial 64 | . . 64 Average 143 | . 123 232 Influence Increases 1091 | . 592 499 Destroy 0b10 Robot/C 540 | . 320 220 Destroy 0b10 Robot/NC 5 | . 5 . Destroy Leader 132 | . 82 50 Successful Hack 76 | . 60 16 Disable Machine 90 | . 15 75 Destroy Structure 83 | . 20 63 Lose Combat Pursuer 165 | . 90 75 Influence Decreases 902 | . 439 463 Entered New Map 89 | . . 89 Time Decay 663 | . 409 254 Lost Part 150 | . 30 120 Squads Dispatched 11 | . 5 6 Investigation 4 | . 3 1 Extermination . | . . . Reinforcement 7 | . 2 5 Assault . | . . . Garrison . | . . . Intercept . | . . . Searches Triggered . | . . . Construction Impeded 1 | . . 1 Haulers Reinforced . | . . . Active Scanning Responses . | . . . Cargo Convoy Interrupts . | . . . Stealth | -11 -10 -9 --------- Run | Yrd Mat Mat Distress Signals 8 | . 5 3 Communications Jammed . | . . . Distress Signals . | . . . Times Spotted 64 | . 32 32 Peak Tracking Total 11 | . 5 11 Tactical Retreats 6 | . 4 2 Traps | -11 -10 -9 ------- Run | Yrd Mat Mat Traps Triggered 2 | . 1 1 Indirectly . | . . . Trap Hack Attempts . | . . . Triggered . | . . . Disarmed . | . . . Reprogrammed . | . . . Reused . | . . . Traps Extracted . | . . . Installed . | . . . Triggered . | . . . Machines | -11 -10 -9 ---------- Run | Yrd Mat Mat Machines Disabled 6 | . 1 5 Max in Single Turn 4 | . 1 4 Machines Repaired . | . . . Machines Dismantled . | . . . Machines Sabotaged . | . . . Overloaded Fab Kills . | . . . Hacking | -11 -10 -9 --------- Run | Yrd Mat Mat Machines Accessed 10 | . 8 2 Terminals 7 | . 6 1 Fabricators . | . . . Repair Stations 1 | . 1 . Recycling Units 1 | . 1 . Scanalyzers 1 | . . 1 Garrison Access . | . . . Total Hacks 39 | . 31 8 Successful 17 | . 14 3 Failed 22 | . 17 5 Catastrophic 4 | . 4 . Database Lockouts . | . . . Manual 4 | . 4 . Terminals 28 | . 23 5 Fabricators . | . . . Repair Stations 5 | . 5 . Recycling Units 3 | . 3 . Scanalyzers 3 | . . 3 Garrison Access . | . . . Terminal Hacks 11 | . 9 2 Record 1 | . . 1 Level Access Points 1 | . 1 . Emergency Access Points 2 | . 2 . Alert Level 1 | . 1 . Locate Traps 2 | . 1 1 Assault Status 1 | . 1 . Recall Investigation 1 | . 1 . Registered Components 1 | . 1 . Zone Layout 1 | . 1 . Fabricator Hacks . | . . . Repair Station Hacks 4 | . 4 . Scan Component 2 | . 2 . Repair 2 | . 2 . Recycling Unit Hacks 1 | . 1 . Retrieve Components 1 | . 1 . Scanalyzer 1 | . . 1 Insert Component 1 | . . 1 Garrison Access Hacks . | . . . Unauthorized Hacks . | . . . Terminals . | . . . Fabricators . | . . . Repair Stations . | . . . Recycling Units . | . . . Scanalyzers . | . . . Garrison Access . | . . . Data Cores Recovered . | . . . Used . | . . . Hacking Detections 10 | . 8 2 Full Trace Events 6 | . 5 1 Feedback Events . | . . . Feedback Blocked . | . . . Robot Schematics Acquired . | . . . Robots Built . | . . . Authchips . | . . . Time . | . . . Total Robot Build Rating . | . . . Part Schematics Acquired . | . . . Parts Built . | . . . Authchips . | . . . Time . | . . . Total Part Build Rating . | . . . Parts Repaired 2 | . 2 . Time 52 | . 52 . Parts Recycled . | . . . Recycled Matter . | . . . Retrieved Matter . | . . . Retrieved Components 9 | . 9 . Parts Scanalyzed 1 | . . 1 Part Schematics Acquired . | . . . Parts Damaged 1 | . . 1 Bothacking | -11 -10 -9 ------------ Run | Yrd Mat Mat Used RIF Installer . | . . . Robots Hacked . | . . . Non-combat . | . . . Combat . | . . . Robot Hacks Applied . | . . . Relay Couplers Released . | . . . Fabnet Peak Effective % . | . . . Robots Rewired . | . . . Allies Hacked . | . . . Hacks Repelled . | . . . Allies | -11 -10 -9 -------- Run | Yrd Mat Mat Total Allies . | . . . Largest Group . | . . . Highest-Rated Group . | . . . Highest-Rated Ally . | . . . Total Orders . | . . . Ally Attacks . | . . . Total Damage . | . . . Kills . | . . . Allies Corrupted . | . . . Allies Melted . | . . . Intel | -11 -10 -9 ------- Run | Yrd Mat Mat Active Infowar (turns) 1346 | . 845 501 Structural 1346 | . 845 501 Robot Analysis Total . | . . . Derelict Logs Recovered . | . . . Drone Launches . | . . . Drone Recoveries . | . . . Exploration | -11 -10 -9 ------------- Run | Yrd Mat Mat Turns Passed 2313 | 116 1641 556 Spaces Moved 1383 | 78 951 354 Core 4 | 3 . 1 Treads . | . . . Legs 1379 | 75 951 353 Wheels . | . . . Hover . | . . . Flight . | . . . Fastest Speed 50 | 50 120 120 Average Speed 120 | 117 120 123 Slowest Speed 500 | 120 120 500 Overloaded Moves . | . . . Propulsion Burnouts . | . . . Robots Hopped . | . . . Potential Cave-ins . | . . . Cave-ins Triggered . | . . . Exploration Rate (%) 46 | 4 94 42 Regions Visited 2 Branch Regions . Pre-discovered Areas . | . . . Known Exits Taken 1 | . 1 . Unknown Exits Taken 1 | 1 . . Scrap Searched . | . . . Spaces Dug 28 | . 15 13 Terrain Destroyed 83 | . 21 62 Melee . | . . . Projectile . | . . . AOE 83 | . 21 62 Terrain Rammed . | . . . Walls Destroyed . | . . . Machines Disabled . | . . . Actions | -11 -10 -9 --------- Run | Yrd Mat Mat Total 1874 | 99 1346 429 Wait 299 | 10 270 19 Move 1381 | 77 950 354 Hop . | . . . Pick Up 25 | 6 13 6 Fast Attach 10 | 6 4 . Attach 10 | . 2 8 Detach 1 | . . 1 Swap 23 | . 15 8 Drop 26 | . 22 4 Fire 93 | . 67 26 Melee 2 | . . 2 Ram 1 | . . 1 Kick 3 | . 3 . Crush . | . . . Escape Stasis . | . . . Rewire . | . . . Trap . | . . . Miscellaneous . | . . . Route ------- -11/Scrapyard -10/Materials (discovered 4 exits: *Mat x3 / [*Min]) -9/Materials (discovered 2 exits: [*Mat] / [*Sto]) History --------- Turn | Location | Event 22 | -11/Scrapyard | Discovered new exit (range 16) 117 | -11/Scrapyard | Entered Materials 306 | -10/Materials | Build established: Mutant 434 | -10/Materials | Identified exit to Materials 1052 | -10/Materials | Core integrity fell below 50% 1498 | -10/Materials | Repaired Ion Engine 1526 | -10/Materials | Repaired Aluminum Leg 1729 | -10/Materials | Discovered new exit (range 9) 1758 | -10/Materials | Entered another Materials area 1758 | -9/Materials | Evolved 2 slots: Propulsion x2 2065 | -9/Materials | Build established: Scavenger-Mutant 2092 | -9/Materials | Discovered new exit (range 10) 2171 | -9/Materials | Discovered new exit (range 5) 2275 | -9/Materials | Core integrity fell below 50% 2308 | -9/Materials | Core integrity fell below 20% 2314 | -9/Materials | Destroyed by G-34 Mercenary with Small Laser Last Messages --------------- investigation squad. 02246_ ALERT: Hostiles spotted, dispatching reinforcements to Terminal M009. 02251_ W-16 Scout sends out distress signal. 02260_ Aluminum Leg destroyed. 02280_ Critical hit (Burn: +37). 02280_ Aluminum Leg destroyed. 02284_ Autogun destroyed. 02287_ Lgt. Ion Engine destroyed. 02290_ Dropped Lrg. Storage Unit. 02302_ C-30 ARC bursts open, deploying its payload. 02302_ L-31 Rogue unfolds itself. 02302_ G-34 Mercenary unfolds itself. 02307_ Aluminum Leg destroyed. 02312_ W-16 Scout destroyed. 02313_ Hvy. Hammer severed. 02313_ Slammed into L-31 Rogue. 02313_ L-31 Rogue knocked back. 02313_ Destabilizing: System corrupted (+1). Map ----- +----------------------------------------------------+ | ? # ## # # ########### # """ # | | ? + ##+######### # ##???????## =#*""" # | | ? # ####### "T" # #####????## "* # | | ### ##???## """ # #### =#= # | | ###+#### # ???## # #### ########## | | # # ???######## #### ########## | | # # ???#########+##### #########???????? | | + # ????????? # # """ ""???????? | | # + ???????????????? # ??????????????????? | | ## # ???????????????? # ??????????????????# | | ## # ???????????????? # ??????????????????# | | ## # ?????????????????????????????????????# | | ## # ?????????????????????????????????????# | | ## ##???????????????????????????????????### | | +####+### ###########??????????????????????????### | | ## ### ###########????????????????????????? | | ## ### #### ##????????????????????????? | | # ##???????????????????????? | | + " ##????????????????????????##### | | # ##????????????????????????##### | | "" # ####### ##### #####??????????????????## | | "" # ######## ############??????????????????## | | "" # ##???### # ##??????????????????## | | #### ##????## ]# g ## ? #######????????## | | #### ##????##=!]gg = l ## #???????## | | ??## ##????##]!!# % @ g% #???????## | | ??## ######## ![# / ## #???????## | | ??## ######## [# ###?##### #???????## | | ?? # # # # # ???? # ??????????## | | ?? # # # # # ??????????????????## | | ?? # # # ########### ??????????????????## | | ?? # # # ########### ??????????????????## | | ?? # # # # ????????????????????????????## | | ???? # # # ????????????????????????????## | | ?????? / # # ????????????????????????????## | | ?????? # # # ????????????????????????????## | | ?????? # # # ???????????????????????????### | | ?????? # # # ######????????????????### | | ?????? # # ###+#########????????????????## | | ?????? # # ?????????????## | | ?????? # + ?????????????## | | ??????######### ?????????????## | | ??????############## ###########?????????????## | | ?????????????####### ###########?????????????## | | ????????????????????? ##??????????????????????## | | ????????????????????? ##??????????????????????## | | ?????????????????????? ##??????????????????????### | | ?????????????????????? ##??????????????????????### | | ?????????????????????? ##????????????????????????? | | ?????????????????????? ##????????????????????????? | +----------------------------------------------------+ Best States ------------- Heat Dissipation 28 Energy Generation 10 Energy Capacity 250 Matter Stores 300 Matter Capacity 300 Sight Range 16 Terrain Scan Density 10 Evasion (%) 55 Item Schematics ----------------- None Robot Schematics ------------------ None Fabricated ------------ Nothing Repaired ---------- Ion Engine | 36% | -10/Materials Aluminum Leg | 67% | -10/Materials Alien Tech Used ----------------- None Achievements -------------- None Challenges ------------ None Game ------ Seed AssaultAuthchipWartreads Manual? 0 Play Time 00:32:08 Cumulative 18.3 hours Start 2025.06.02 @ 21:47:09 End 2025.06.02 @ 22:22:16 Sessions 1 Manual Loads 0 Difficulty Rogue Special Mode None Game No. 24 Rogue 24 Adventurer 0 Explorer 0 Win Type - Total 0 Types 0/0/0/0/0/0/0/0/0/0 Lore% 2 Gallery% 11 Achievement% 13 Wizard Run 0 Options --------- Layout 1 ASCII 0 Keyboard 1 Movement Vi Keybinds 0 Fullscreen 2 Font 24/Smallcaps Map View 50x35 Zoom Use 36% Tactical HUD 1 Map Filters NONE Filters NONE Steam 1 RUN: fd949a5f-6bf8-41ee-a7c6-80d0ea027486